Cogmind - Beta 16 @@@ ROGUE MODE // 2025.10.29 @ 22:15:05 Player: Demo Result: Destroyed self with Mini Grenade Launcher Performance ------------- Evolutions (4) 2000 Regions Visited (6) 1200 Robots Destroyed (81) 405 Value Destroyed (2655) 2655 Prototype IDs (33) 660 Alien Tech Used (0) 0 Bonus (1777) 1777 TOTAL SCORE: 8697 Bonus ------- High Alert Combat Kills 447 Follower Combat Kills 750 Registered with UFD 300 Met Optimus in HQ 500 Friendly Fire -220 Cogmind --------- Core Integrity 0/850 Matter 50/300 Energy 100/100 System Corruption 3% Temperature Cool (82) Movement Walking (120) Location -6/Factory Parts ------- > --- POWER (1) -------- (None) > --- PROPULSION (3) --- Enhanced Flexi-carbon Leg > --- UTILITY (7) ------ Coolant Injector Makeshift Utility Shielding > --- WEAPON (4) ------- Mini Grenade Launcher > --- INVENTORY (5) ---- Kinecellerator Recalibrator Peak State ------------ > --- POWER ------------ Light Angular Momentum Engine > --- PROPULSION ------- Overtuned Scrapsphere Armored Huge Wheel > --- UTILITY ---------- Scrap Suit Coolant Injector Huge Storage Unit Advanced Targeting Computer Makeshift Utility Shielding Makeshift Light Armor Plating > --- WEAPON ----------- Subdweller Laser Cooled Particle Cannon Overtuned Barrage Gun Coil Gun > --- INVENTORY -------- Reinforced Deuterium Engine Overtuned Treads Armored Wheel Large Matter Pod Deep Structural Scanner Improved Sensor Array Improved Signal Interpreter Kinecellerator Recalibrator V3-11A's Pendant Power Bank Thermic Laser Subdweller Beam Cannon Grenade Launcher Mini Grenade Launcher CPS Tube CPS Tube Power Sword Signal Generator [Rating: 61] Favorites ----------- Power Improved Ion Engine Engine Improved Ion Engine Propulsion Wheel Treads Spiked Treads Leg Enhanced Flexi-carbon Leg Wheel Wheel Utility Huge Storage Unit Device V3-11A's Pendant Storage Huge Storage Unit Processor Advanced Targeting Computer Protection Makeshift Light Armor Plating Weapon Subdweller Beam Cannon Energy Gun Subdweller Laser Energy Cannon Subdweller Beam Cannon Ballistic Gun Heavy Assault Rifle Launcher Subdweller Shrapnel Launcher Special Weapon CPS Tube Slashing Weapon Power Sword Build | -11 -10 -10 -10 -8 -8 -6 ------- Run | Yrd Mat Min Sub Rec Scr Fac Slots Evolved 8 | . . . . . . 8 Power . | . . . . . . . Propulsion 1 | . . . . . . 1 Utility 5 | . . . . . . 5 Weapon 2 | . . . . . . 2 Parts Attached 75 | 7 2 9 23 1 2 31 Power 10 | 1 . 2 3 . . 4 Engine 10 | 1 . 2 3 . . 4 Core . | . . . . . . . Reactor . | . . . . . . . Propulsion 17 | 2 . 1 7 1 . 6 Treads 6 | 1 . . 4 . . 1 Leg 1 | . . . . . . 1 Wheel 10 | 1 . 1 3 1 . 4 Hover . | . . . . . . . Flight . | . . . . . . . Utility 24 | 2 1 3 6 . 1 11 Device 13 | 1 . . 3 . 1 8 Storage 3 | 1 1 1 . . . . Processor 1 | . . . . . . 1 Hackware . | . . . . . . . Protection 7 | . . 2 3 . . 2 Artifact . | . . . . . . . Weapon 24 | 2 1 3 7 . 1 10 Energy Gun 4 | 1 . . 1 . . 2 Energy Cannon 6 | . 1 . 3 . 1 1 Ballistic Gun 7 | 1 . 2 2 . . 2 Ballistic Cannon . | . . . . . . . Launcher 4 | . . 1 1 . . 2 Special Weapon 2 | . . . . . . 2 Impact Weapon . | . . . . . . . Slashing Weapon 1 | . . . . . . 1 Piercing Weapon . | . . . . . . . Special Melee Weapon . | . . . . . . . Unidentified Prototypes 5 | . . . 1 . . 4 Parts Lost 36 | . . 2 5 . . 29 Power 4 | . . . . . . 4 Propulsion 9 | . . 1 3 . . 5 Utility 9 | . . . 1 . . 8 Weapon 14 | . . 1 1 . . 12 Highest Loss Streak 20 | . . 1 2 . . 20 To Critical Strikes . | . . . . . . . Average Backups 22 | 1 11 22 23 23 21 21 Power 3 | . 3 4 3 3 2 1 Propulsion 2 | . 1 3 3 2 2 2 Utility 6 | . 3 7 6 5 6 9 Weapon 9 | . 3 6 10 12 9 6 Tool/Special . | . . . . . . . Unused Backups 40 | . . 5 12 2 10 11 Power 6 | . . 1 2 . 2 1 Propulsion 4 | . . 1 . 1 1 1 Utility 11 | . . 1 2 . 1 7 Weapon 19 | . . 2 8 1 6 2 Tool/Special . | . . . . . . . Average Slot Usage (%) 98 | . 100 100 100 100 99 88 Engine 13 | . 14 14 14 14 14 5 Treads 10 | . 14 14 15 12 . . Wheel 16 | . 14 14 12 15 28 18 Device 8 | . 14 2 11 . 2 18 Storage 13 | . 14 14 14 14 13 5 Protection 7 | . . 11 2 14 11 12 Energy Gun 7 | . 7 . 5 14 14 5 Energy Cannon 12 | . 7 3 13 14 14 11 Ballistic Gun 6 | . 14 24 7 . . 6 Launcher 1 | . . . 1 . . . Peak Build Rating 61 | 7 10 13 20 20 21 61 Average Rating 20 | 5 9 12 17 20 19 49 On Entrance 13 | . 7 10 13 20 20 21 Avg Prop Armor Cover (%) 12 | 14 11 9 12 13 . 15 Naked Turns . | . . . . . . . Heaviest Build 124 | 14 32 99 105 103 103 124 Greatest Support 40 | 10 10 10 40 22 22 36 Greatest Overweight (x) 13 | 1 3 9 10 10 4 13 Average Overweight (x) 6 | . 2 8 8 9 3 3 Largest Inventory Capacity 25 | 8 15 25 25 25 25 25 Average Capacity 24 | 7 13 24 25 25 23 24 Most Carried 25 | 2 14 25 25 25 25 25 Average Carried 23 | 1 11 23 24 24 22 22 Final Capacity 25 | 8 15 25 25 25 25 5 Final Carried 25 | 2 14 25 25 25 25 2 Scrap Suit Usage (%) 6 | . . . . . . 62 Parts Cannibalized 3 | . . . . . . 3 Class Distribution -------------------- 56% | Mutant 26% | Commander-Mutant 7% | Commander-Tank 3% | Derelict-Mutant 3% | Scavenger-Mutant Dominant Class ---------------- Mutant | -10/Materials Mutant | -10/Mines Mutant | -10/Subcaves Commander-Mutant | -8/Recycling Commander-Mutant | -8/Scraptown Commander-Tank | -6/Factory Resources | -11 -10 -10 -10 -8 -8 -6 ----------- Run | Yrd Mat Min Sub Rec Scr Fac Matter Collected 2474 | 330 41 298 987 19 119 680 Remotely . | . . . . . . . Salvage Created 2516 | 220 84 301 540 . . 1371 Parts 130 | 17 7 28 18 . . 60 Haulers Intercepted 2 | . . . . . . 2 Recyclers Shooed 4 | . . . . . . 4 Parts Field Recycled . | . . . . . . . Retrieved Matter . | . . . . . . . Parts Self-Destructed 19 | . . . 19 . . . Prevented . | . . . . . . . Parts Restored 4 | . . . 3 . 1 . Broken 4 | . . . 3 . 1 . Kills | -11 -10 -10 -10 -8 -8 -6 ------- Run | Yrd Mat Min Sub Rec Scr Fac Combat Hostiles Destroyed 50 | . 1 7 11 . . 31 Melee 1 | . . . . . . 1 Guns 6 | . . 2 . . . 4 Cannons 11 | . . . 8 . . 3 AOE 28 | . . 5 . . . 23 Classes Destroyed 16 | 3 2 3 2 . . 6 Worker 7 | 2 . 2 . . . 3 Builder 4 | . . 1 . . . 3 Tunneler 9 | 4 . 4 . . . 1 Hauler 2 | . . . . . . 2 Recycler 4 | 1 . . . . . 3 Mechanic 2 | . . 1 . . . 1 Turret 1 | . . . 1 . . . Watcher 2 | . 2 . . . . . Swarmer 7 | . . 5 . . . 2 Grunt 14 | . 1 2 1 . . 10 Protector 3 | . . . . . . 3 Sentry 3 | . . . . . . 3 Specialist 2 | . . . . . . 2 Hunter 8 | . . . . . . 8 Programmer 3 | . . . . . . 3 Subdweller 10 | . . . 10 . . . Best Kill Streak 28 | 6 2 4 3 . . 28 Combat Bots Only 19 | . 1 3 3 . . 19 Max Kills in Single Turn 7 | 1 1 2 1 . . 7 Gunslinging . | . . . . . . . Exploded 7 | . . 2 . . . 7 Melee 1 | . . . . . . 1 Uniques/NPCs Destroyed . | . . . . . . . Combat | -11 -10 -10 -10 -8 -8 -6 -------- Run | Yrd Mat Min Sub Rec Scr Fac Hostile Shots Fired 530 | . 20 27 44 2 . 437 Missed 179 | . 4 7 16 1 . 151 Hits 351 | . 16 20 28 1 . 286 Projectile 351 | . 16 20 28 1 . 286 AOE 5 | . . . 5 . . . Critical Strikes 13 | . . 1 2 . . 10 Damage Taken 5778 | . 176 212 930 11 . 4449 Core 1045 | . 21 13 147 . . 864 Absorbed by Shields 144 | . . . . 3 . 141 Redirected to Shielding 206 | . . . . . . 206 Regen/Repaired (Parts) 81 | . . . . . . 81 Core Remaining (%) 63 | 100 . . . . 27 . Volleys Fired 283 | 20 8 28 148 3 . 76 Largest 4 | 2 2 2 2 2 . 4 Hottest 250 | 60 76 76 140 140 . 250 Shots Fired 558 | 40 16 51 239 6 . 206 Gun 300 | 40 9 39 97 3 . 112 Cannon 208 | . 7 7 120 3 . 71 Launcher 49 | . . 5 22 . . 22 Special 1 | . . . . . . 1 Kinetic 246 | 20 8 39 101 . . 78 Thermal 278 | 20 1 . 138 6 . 113 Explosive 19 | . . 5 . . . 14 Electromagnetic 14 | . 7 7 . . . . Robot Hit Streak 18 | 6 3 8 12 1 . 18 Robot Miss Streak 5 | 2 2 3 2 3 . 5 Penetration Max 2 | . . . . . . 2 Secondary Targets . | . . . . . . . Shots Hit Robots 215 | 23 9 28 53 1 . 101 Core Hits 194 | 8 4 21 16 . . 145 Critical Kills 3 | . . . 3 . . . Critical Parts Destroyed 1 | . . . . . . 1 Critical Strikes 6 | . 1 . 3 . . 2 Meltdown 3 | . . . 3 . . . Destroy 2 | . . . . . . 2 Corrupt 1 | . 1 . . . . . Melee Attacks 4 | . . . . . . 4 Impact . | . . . . . . . Slashing 4 | . . . . . . 4 Piercing . | . . . . . . . Sneak Attacks . | . . . . . . . Combat Hostiles . | . . . . . . . Follow-up Attacks . | . . . . . . . Damage Inflicted 9982 | 264 244 684 1221 27 . 7542 Guns 2138 | 264 34 243 361 . . 1236 Cannons 2455 | . 182 151 775 27 . 1320 Explosions 5272 | . 28 290 85 . . 4869 Melee 83 | . . . . . . 83 Ramming 34 | . . . . . . 34 Kinetic 4605 | 142 34 243 424 . . 3762 Thermal 2762 | 122 28 . 797 27 . 1788 Explosive 2165 | . . 290 . . . 1875 Electromagnetic 333 | . 182 151 . . . . Impact . | . . . . . . . Slashing 83 | . . . . . . 83 Piercing . | . . . . . . . Highest Corruption 3 | . . . . 1 . 3 Average Corruption 1 | . . . . 1 . 2 Corruption Purged . | . . . . . . . Corruption Blocked . | . . . . . . . Effects 5 | . . . . 3 . 2 Message Errors 4 | . . . . 2 . 2 Matter Fused 1 | . . . . 1 . . Overload Shots 9 | . . . . . . 9 Overflow Damage 189 | . . 4 . . . 185 Projectiles 99 | . . . . . . 99 Explosions 90 | . . 4 . . . 86 Melee . | . . . . . . . Knockbacks . | . . . . . . . Impact . | . . . . . . . Kinetic . | . . . . . . . Secondary . | . . . . . . . Self-Inflicted Damage 263 | . . 20 . . . 243 Shots 7 | . . 1 . . . 6 Rammed . | . . . . . . . Targets Rammed 9 | . . . . . . 9 Kicked 9 | . . . . . . 9 Crushed . | . . . . . . . Highest Temperature 270 | . 30 27 112 96 . 270 Average Temperature 56 | . 17 11 31 52 . 79 Received Heat Transfer 1411 | . 96 18 144 . . 1153 Effects 1 | . . . . . . 1 Energy Bleed 1 | . . . . . . 1 Siege Activations . | . . . . . . . Martial Activations . | . . . . . . . Shielding Activations . | . . . . . . . Robots Disrupted . | . . . . . . . Combat Hostiles . | . . . . . . . Robots Corrupted 1 | . 1 . . . . . Combat Hostiles 1 | . 1 . . . . . Parts Fried 1 | . . 1 . . . . Impact Corruptions . | . . . . . . . Robots Melted 3 | . . . 3 . . . Combat Hostiles 3 | . . . 3 . . . Parts Melted 11 | . . . 6 . . 5 Heat Transferred 3361 | 275 . . 1061 37 . 1988 Parts Sabotaged . | . . . . . . . Parts Stolen . | . . . . . . . Parts Stripped . | . . . . . . . Power Chain Reactions 1 | . 1 . . . . . Alert | -11 -10 -10 -10 -8 -8 -6 ------- Run | Yrd Mat Min Sub Rec Scr Fac Maximum Alert Level 3 | . . . . . . 3 Low Security (%) 78 | 100 100 100 . 100 . 30 Level 1 13 | . . . . . . 44 Level 2 4 | . . . . . . 15 Level 3 3 | . . . . . . 10 Level 4 . | . . . . . . . Level 5 . | . . . . . . . High Security . | . . . . . . . Max Security . | . . . . . . . Peak Influence 792 | 15 30 119 . 105 . 792 Initial 4 | . . . . 4 . . Average 102 | 3 7 35 . 21 . 277 Influence Increases 2506 | 35 78 348 150 390 . 1505 Destroy 0b10 Robot/C 1260 | . 20 240 100 120 . 780 Destroy 0b10 Robot/NC 170 | 35 10 40 . . . 85 Destroy Leader 230 | . 14 30 10 . . 176 Allied During Kill 278 | . . 15 10 72 . 181 Successful Hack 60 | . 13 . . 30 . 17 Select Force Hacks 180 | . . . . 150 . 30 Disable Machine 45 | . . . . 15 . 30 Anti-Garrison Action 150 | . . . . . . 150 Destroy Structure 88 | . 6 23 . 3 . 56 Lose Combat Pursuer 45 | . 15 . 30 . . . Influence Decreases 1865 | 35 78 348 141 368 31 864 Entered New Map 36 | . . . . 5 31 . Time Decay 1278 | 35 78 328 90 323 . 424 Lost Part 330 | . . 20 20 . . 290 Lost Ally 221 | . . . 31 40 . 150 Squads Dispatched 20 | . 2 1 . . . 17 Investigation 9 | . 2 . . . . 7 Extermination 2 | . . . . . . 2 Reinforcement 4 | . . . . . . 4 Assault 3 | . . 1 . . . 2 Garrison 2 | . . . . . . 2 Intercept . | . . . . . . . Searches Triggered . | . . . . . . . Construction Impeded 2 | . . . . . . 2 Haulers Reinforced . | . . . . . . . Active Scanning Responses . | . . . . . . . Cargo Convoy Interrupts 1 | . . . . . . 1 Stealth | -11 -10 -10 -10 -8 -8 -6 --------- Run | Yrd Mat Min Sub Rec Scr Fac Distress Signals 5 | . 1 1 . . . 3 Communications Jammed . | . . . . . . . Distress Signals . | . . . . . . . Times Spotted 110 | . 8 10 29 2 . 61 Peak Tracking Total 21 | . 3 3 5 1 . 21 Tactical Retreats 2 | . 1 . 1 . . . Traps | -11 -10 -10 -10 -8 -8 -6 ------- Run | Yrd Mat Min Sub Rec Scr Fac Traps Triggered 5 | . . . 4 . . 1 Indirectly . | . . . . . . . Trap Hack Attempts . | . . . . . . . Triggered . | . . . . . . . Disarmed . | . . . . . . . Reprogrammed . | . . . . . . . Reused . | . . . . . . . Traps Extracted . | . . . . . . . Installed . | . . . . . . . Triggered . | . . . . . . . Machines | -11 -10 -10 -10 -8 -8 -6 ---------- Run | Yrd Mat Min Sub Rec Scr Fac Machines Disabled 7 | . . . 3 1 . 3 Max in Single Turn 1 | . . . 1 . . 1 Garrison Access 1 | . . . . . . 1 Machines Repaired . | . . . . . . . Machines Dismantled . | . . . . . . . Machines Sabotaged . | . . . . . . . Overloaded Fab Kills . | . . . . . . . Hacking | -11 -10 -10 -10 -8 -8 -6 --------- Run | Yrd Mat Min Sub Rec Scr Fac Machines Accessed 35 | . 4 . 2 12 5 12 Terminals 14 | . 3 . . 6 . 5 Fabricators . | . . . . . . . Repair Stations 1 | . . . . . . 1 Recycling Units 12 | . 1 . . 6 . 5 Scanalyzers . | . . . . . . . Garrison Access 1 | . . . . . . 1 Total Hacks 127 | . 17 . 4 45 37 24 Successful 80 | . 5 . 4 22 37 12 Failed 47 | . 12 . . 23 . 12 Catastrophic 7 | . 2 . . 2 . 3 Database Lockouts . | . . . . . . . Manual 58 | . 14 . . 26 . 18 Terminals 54 | . 13 . . 28 . 13 Fabricators . | . . . . . . . Repair Stations 3 | . . . . . . 3 Recycling Units 27 | . 4 . . 17 . 6 Scanalyzers . | . . . . . . . Garrison Access 2 | . . . . . . 2 Terminal Hacks 57 | . 5 . 4 9 37 2 Record 40 | . . . 3 . 37 . Robot Analysis 4 | . 4 . . . . . Prototype ID Bank 9 | . . . . 9 . . Branch Access Points 1 | . 1 . . . . . Alert Level 1 | . . . . . . 1 Registered Prototypes 1 | . . . . . . 1 Proto ID Catalog 1 | . . . 1 . . . Fabricator Hacks . | . . . . . . . Repair Station Hacks 2 | . . . . . . 2 Scan Component 1 | . . . . . . 1 Repair 1 | . . . . . . 1 Recycling Unit Hacks 3 | . . . . 3 . . Retrieve Components 3 | . . . . 3 . . Scanalyzer . | . . . . . . . Garrison Access Hacks . | . . . . . . . Unauthorized Hacks 18 | . . . . 10 . 8 Terminals 7 | . . . . 5 . 2 Botnet 6 | . . . . 5 . 1 Operators 1 | . . . . . . 1 Fabricators . | . . . . . . . Repair Stations 1 | . . . . . . 1 Patch 1 | . . . . . . 1 Recycling Units 10 | . . . . 5 . 5 Tunnel 6 | . . . . 5 . 1 Fedlink 4 | . . . . . . 4 Scanalyzers . | . . . . . . . Garrison Access . | . . . . . . . Data Cores Recovered . | . . . . . . . Used . | . . . . . . . Hacking Detections 20 | . 4 . . 9 . 7 Full Trace Events 12 | . 4 . . 7 . 1 Feedback Events 1 | . . . . 1 . . Corruption 1 | . . . . 1 . . Feedback Blocked . | . . . . . . . Robot Schematics Acquired . | . . . . . . . Robots Built . | . . . . . . . Authchips . | . . . . . . . Time . | . . . . . . . Total Robot Build Rating . | . . . . . . . Part Schematics Acquired . | . . . . . . . Parts Built . | . . . . . . . Authchips . | . . . . . . . Time . | . . . . . . . Total Part Build Rating . | . . . . . . . Part Studies Acquired . | . . . . . . . Parts Repaired 1 | . . . . . . 1 Time 44 | . . . . . . 44 Parts Recycled . | . . . . . . . Recycled Matter . | . . . . . . . Retrieved Matter . | . . . . . . . Retrieved Components 12 | . . . . 12 . . Parts Scanalyzed . | . . . . . . . Part Schematics Acquired . | . . . . . . . Parts Damaged . | . . . . . . . Bothacking | -11 -10 -10 -10 -8 -8 -6 ------------ Run | Yrd Mat Min Sub Rec Scr Fac Used RIF Installer . | . . . . . . . Robots Hacked . | . . . . . . . Non-combat . | . . . . . . . Combat . | . . . . . . . Robot Hacks Applied . | . . . . . . . Relay Couplers Released 2 | . . . . . . 2 Machine Destruction 2 | . . . . . . 2 Fabnet Peak Effective % . | . . . . . . . Robots Rewired 13 | . . . . 13 . . Allies Hacked . | . . . . . . . Hacks Repelled . | . . . . . . . Allies | -11 -10 -10 -10 -8 -8 -6 -------- Run | Yrd Mat Min Sub Rec Scr Fac Total Allies 27 | . . 1 13 13 . . Largest Group 22 | . . 1 9 22 19 18 Highest-Rated Group 377 | . . 31 171 377 320 293 Highest-Rated Ally 31 | . . 31 31 27 27 27 Total Orders 4 | . . . . 4 . . AID 1 | . . . . 1 . . PICKUP 2 | . . . . 2 . . COLLECT 1 | . . . . 1 . . Ally Attacks 216 | . . 28 60 33 . 95 Total Damage 3113 | . . 382 852 539 . 1340 Kills 32 | . . 5 5 6 . 16 Allies Corrupted . | . . . . . . . Allies Melted . | . . . . . . . Intel | -11 -10 -10 -10 -8 -8 -6 ------- Run | Yrd Mat Min Sub Rec Scr Fac Active Infowar (turns) 1308 | 4 268 246 172 . 348 270 Terrain 15 | . . . 15 . . . Structural 618 | . . . . . 348 270 Seismic 675 | 4 268 246 157 . . . Robot Analysis Total 4 | . 4 . . . . . Derelict Logs Recovered 9 | . . 1 3 . 5 . Drone Launches . | . . . . . . . Drone Recoveries . | . . . . . . . Exploration | -11 -10 -10 -10 -8 -8 -6 ------------- Run | Yrd Mat Min Sub Rec Scr Fac Turns Passed 14804 | 125 268 1318 7233 1641 2747 1472 Spaces Moved 6897 | 62 189 565 2773 612 1869 827 Core 15 | 15 . . . . . . Treads 159 | . . . 156 . . 3 Legs 10 | . . . . . . 10 Wheels 6713 | 47 189 565 2617 612 1869 814 Hover . | . . . . . . . Flight . | . . . . . . . Fastest Speed 50 | 50 95 125 215 145 100 109 Average Speed 185 | 83 112 211 226 219 141 132 Slowest Speed 360 | 95 125 215 360 230 145 240 Overloaded Moves . | . . . . . . . Propulsion Burnouts . | . . . . . . . Robots Hopped . | . . . . . . . Potential Cave-ins . | . . . . . . . Cave-ins Triggered . | . . . . . . . Exploration Rate (%) 61 | 4 31 88 95 98 86 25 Regions Visited 6 Branch Regions 4 Pre-discovered Areas 13 | . . . 1 5 5 2 Known Exits Taken 1 | . 1 . . . . . Unknown Exits Taken 5 | 1 . 1 1 1 1 . Scrap Searched 20 | . . 1 16 . 3 . Spaces Dug 126 | . . . 110 . . 16 Terrain Destroyed 443 | . 5 25 355 2 . 56 Melee . | . . . . . . . Projectile 67 | . . . 41 2 . 24 AOE 376 | . 5 25 314 . . 32 Terrain Rammed . | . . . . . . . Walls Destroyed . | . . . . . . . Machines Disabled . | . . . . . . . Actions | -11 -10 -10 -10 -8 -8 -6 --------- Run | Yrd Mat Min Sub Rec Scr Fac Total 8420 | 91 228 644 3489 912 1988 1068 Wait 724 | 1 17 4 475 108 43 76 Move 6891 | 61 188 564 2772 611 1868 827 Hop . | . . . . . . . Pick Up 121 | 2 12 21 27 6 36 17 Fast Attach 19 | 7 . 1 2 . 1 8 Attach 28 | . . 2 5 . . 21 Detach 1 | . . . 1 . . . Swap 62 | . 2 12 27 1 4 16 Drop 100 | . 1 12 31 6 36 14 Fire 283 | 20 8 28 148 3 . 76 Melee 4 | . . . . . . 4 Ram . | . . . . . . . Kick 9 | . . . . . . 9 Crush . | . . . . . . . Escape Stasis . | . . . . . . . Rewire 178 | . . . 1 177 . . Trap . | . . . . . . . Miscellaneous . | . . . . . . . Route ------- -11/Scrapyard -10/Materials (discovered 2 exits: *Min x2) -10/Mines (discovered 3 exits: [*Mat x2] / *Sub) -10/Subcaves (discovered 3 exits: [*Mat x2] / *Rec) -8/Recycling (discovered 2 exits: *Fac / *Scr) -8/Scraptown -6/Factory (discovered 3 exits: *Fac x2 / Low) History --------- Turn | Location | Event 34 | -11/Scrapyard | Discovered new exit (range 15) 126 | -11/Scrapyard | Entered Materials 192 | -10/Materials | Identified exit to Mines 309 | -10/Materials | Build established: Mutant 394 | -10/Materials | Entered Mines 397 | -10/Mines | Met a Derelict testing a Signal Generator 403 | -10/Mines | Found Signal Generator 589 | -10/Mines | Learned Materials emergency access door positions 795 | -10/Mines | Discovered new exit (range 16) 972 | -10/Mines | Found a Scrap Suit stashed away for nefarious purposes 1044 | -10/Mines | Discovered new exit (range 9) 1149 | -10/Mines | Discovered new exit (range 7) 1445 | -10/Mines | Found a hidden stash of uninstalled traps 1712 | -10/Mines | Entered Subcaves 1712 | -10/Subcaves | Accompanied by 1 ally 1713 | -10/Subcaves | Approached by a straggling Scientist 2185 | -10/Subcaves | Learned location of Zion (-7) 2614 | -10/Subcaves | Discovered new exit (range 13) 2829 | -10/Subcaves | Shifting Twisted Machinery released Sub. Power Source 2831 | -10/Subcaves | Shifting Twisted Machinery released Mak. Hacking Suite 2847 | -10/Subcaves | Build established: Scavenger-Mutant 2929 | -10/Subcaves | Core integrity fell below 50% 2940 | -10/Subcaves | Ambushed by Subdweller buried in earth 3047 | -10/Subcaves | Visited triangular shrine 3062 | -10/Subcaves | Found Prototype Device 3062 | -10/Subcaves | Identified V3-11A's Pendant 3068 | -10/Subcaves | Befriended Subdweller 3159 | -10/Subcaves | Build established: Mutant 3483 | -10/Subcaves | Befriended Subdweller 3553 | -10/Subcaves | Befriended Subdweller 3594 | -10/Subcaves | Learned Materials garrison access intel 4416 | -10/Subcaves | Discovered new exit (range 13) 4715 | -10/Subcaves | Visited 4L-MR0's lab 4748 | -10/Subcaves | Found Power Bank 5349 | -10/Subcaves | Shifting Twisted Machinery released Mak. Light Armor Plating 5396 | -10/Subcaves | Shifting Twisted Machinery released Mak. System Shield 5736 | -10/Subcaves | Discovered new exit (range 8) 5748 | -10/Subcaves | Shifting Twisted Machinery released Flamer 6095 | -10/Subcaves | Visited Clippyterm 6102 | -10/Subcaves | Learned Factory stockpile data 6139 | -10/Subcaves | Approached by friendly Subdweller 6853 | -10/Subcaves | Befriended Subdweller 7513 | -10/Subcaves | Ambushed by Subdweller buried in earth 7515 | -10/Subcaves | Ambushed by Subdweller buried in earth 7515 | -10/Subcaves | Ambushed by Subdweller buried in earth 7518 | -10/Subcaves | Befriended Subdweller 7518 | -10/Subcaves | Befriended Subdweller 7518 | -10/Subcaves | Befriended Subdweller 7543 | -10/Subcaves | Befriended Subdweller 7609 | -10/Subcaves | Ambushed by Subdweller buried in earth 7633 | -10/Subcaves | Ambushed by Subdweller buried in earth 7633 | -10/Subcaves | Ambushed by Subdweller buried in earth 7638 | -10/Subcaves | Befriended Subdweller 7638 | -10/Subcaves | Befriended Subdweller 7638 | -10/Subcaves | Befriended Subdweller 8077 | -10/Subcaves | Build established: Derelict-Mutant 8371 | -10/Subcaves | Ambushed by Subdweller buried in earth 8375 | -10/Subcaves | Befriended Subdweller 8638 | -10/Subcaves | Build established: Mutant 8945 | -10/Subcaves | Entered Recycling 8945 | -8/Recycling | Accompanied by 9 allies 8946 | -8/Recycling | Met a Zionite searching for Scraptown 9703 | -8/Recycling | Build established: Commander-Mutant 10124 | -8/Recycling | Discovered new exit (range 6) 10520 | -8/Recycling | Scanned before Scraplab entrance 10541 | -8/Recycling | Entered Scraplab 10552 | -8/Recycling | Discovered new exit (range 2) 10586 | -8/Recycling | Entered Scraptown 10586 | -8/Scraptown | Accompanied by 19 allies 10586 | -8/Scraptown | System corruption cleaned by C-Scrubber 10742 | -8/Scraptown | Visited UFD Registry 10742 | -8/Scraptown | Registered with UFD as "Datadisc" 10801 | -8/Scraptown | Visited Derelict Rescue Squad 10836 | -8/Scraptown | Visited Curators Association 10905 | -8/Scraptown | Delivered Scrap Shield to a Scientist 11510 | -8/Scraptown | Scanned Subdweller tech in exchange for log data 11514 | -8/Scraptown | Learned location of Warlord (-4) 11516 | -8/Scraptown | Learned location of 1 exit from Factory 11517 | -8/Scraptown | Learned Research stockpile data 11520 | -8/Scraptown | Learned Factory emergency access door positions 11554 | -8/Scraptown | Visited Shadow of the Wyrm 11575 | -8/Scraptown | Visited CR-KLE's Repair Center 11601 | -8/Scraptown | Visited Fellowship of the Rings 11620 | -8/Scraptown | Visited Cyclists 11638 | -8/Scraptown | Entered Cyclist Reading Room 11678 | -8/Scraptown | Visited IN-MT5's Study 11754 | -8/Scraptown | Visited Cartography Club 12023 | -8/Scraptown | Found Deep Structural Scanner 12057 | -8/Scraptown | Learned location of Hub_04(d) (-6) 12057 | -8/Scraptown | Learned 16 Materials zone layouts 12057 | -8/Scraptown | Learned 12 Factory zone layouts 12057 | -8/Scraptown | Learned 12 Research zone layouts 12057 | -8/Scraptown | Learned 4 Access zone layouts 12057 | -8/Scraptown | Learned 8 Access zone layouts 12057 | -8/Scraptown | Learned 20 Upper Caves zone layouts 12057 | -8/Scraptown | Learned 8 Proximity Caves zone layouts 12057 | -8/Scraptown | Learned 12 Proximity Caves zone layouts 12057 | -8/Scraptown | Learned 24 Proximity Caves zone layouts 12057 | -8/Scraptown | Learned 4 Armory zone layouts 12057 | -8/Scraptown | Learned Storage emergency access door positions 12057 | -8/Scraptown | Learned location of 1 exit from Factory 12057 | -8/Scraptown | Learned location of 1 exit from Lower Caves 12057 | -8/Scraptown | Learned location of 2 exits from Lower Caves 12310 | -8/Scraptown | Visited DA-N13 Charitable Foundation 12315 | -8/Scraptown | Found DCF Scrap (30 items) 12456 | -8/Scraptown | Visited Scrapoid Research Area 12481 | -8/Scraptown | Visited Observation Area 12579 | -8/Scraptown | Visited Supply Room 12616 | -8/Scraptown | Visited Junk Repository 12972 | -8/Scraptown | Found Scrap Suit 13034 | -8/Scraptown | Discovered new exit (range 3) 13221 | -8/Scraptown | Met Optimus 13221 | -8/Scraptown | Accepted into 0bPrime 13333 | -8/Scraptown | Entered Factory 13333 | -6/Factory | Accompanied by 19 allies 13333 | -6/Factory | Evolved 8 slots: Propulsion x1, Utility x5, Weapon x2 13334 | -6/Factory | Identified exit to Factory 13334 | -6/Factory | Identified exit to Lower Caves 13586 | -6/Factory | Spotted B-75 Beast 13630 | -6/Factory | Allies destroyed B-75 Beast 13646 | -6/Factory | Build established: Commander-Tank 13647 | -6/Factory | Loaded intel: 8 recycling unit locations 13691 | -6/Factory | Allied Derelicts emerged from ambush trap array 13731 | -6/Factory | Learned location of Protoforge (-2) 13794 | -6/Factory | Discovered exit to Factory (range 16) 14209 | -6/Factory | Lost 3 allies 14284 | -6/Factory | Repaired Kinecellerator 14468 | -6/Factory | Lost 4 allies 14568 | -6/Factory | Cargo convoy interrupted 14610 | -6/Factory | Lost 5 parts (1p2u2w) 14612 | -6/Factory | Destroyed 19 combat bots 14615 | -6/Factory | Core integrity fell below 50% 14636 | -6/Factory | Lost 3 allies 14658 | -6/Factory | Lost 4 parts (1p1n2u) 14755 | -6/Factory | Found Prototype Device 14755 | -6/Factory | Identified Exp. Focal Shield 14764 | -6/Factory | Attached CPS modules to G-50 Soldier. 14788 | -6/Factory | Core integrity fell below 20% 14805 | -6/Factory | Destroyed self with Mini Grenade Launcher Last Messages --------------- 14796_ Exp. Heat Sink destroyed. 14797_ R-10 Processor collects Prototype Device. 14797_ U-05 Engineer lays Concrete. 14799_ Exp. Focal Shield destroyed. 14800_ U-05 Engineer lays Concrete. 14800_ Destroyed Adv. Heat Sink. 14800_ Thermic Laser destroyed. 14800_ Destroyed Thermic Laser. 14800_ Lgt. Angular Momentum Engine destroyed. 14800_ Destroyed Lgt. Angular Momentum Engine. 14800_ R-10 Processor destroyed. 14801_ U-05 Engineer lays Concrete. 14801_ R-10 Processor collects Lgt. Nuclear Core. 14802_ U-05 Engineer lays Concrete. 14802_ U-05 Engineer builds a Wall. 14803_ U-05 Engineer lays Concrete. 14803_ Destroyed Carbon-fiber Leg. 14804_ U-05 Engineer lays Concrete. 14805_ Y-54 Guardian destroyed. Map ----- +----------------------------------------------------+ | ?????????????????????????????????????????????????? | | ?????????????????????????????????????????????????? | | ?????????????????????????????????????????????????? | | ?????????????????????????????????????????????????? | | ?????????????????????????????????????????????????? | | ?????????????????????????????????????????????????? | | ???????????????????????????????????????????!?????? | | ?????????????????????????????????????????????????? | | ?????????????????????????????????????????????????? | | ???????????????????????????????? ????????????????? | | ?????????????????????????????? ????????????????? | | ?????????????????????????????? ????????????????? | | ?????????????????????????????? ????????????????? | | ?????????????????????????????? "????????????????? | | ????????????????????????????? T????????????????? | | ????????????????????????????? #????????????????? | | ????????????????????????????? #????????????????? | | ????????????????????????????? #????????????????? | | ??????????????##############? #????????????????? | | ??????????????# ## #????????????????? | | ??????????????# ## #??????????# #?? | | ??????????????# ## ##?????????# #?? | | ??????????????# u !!# ########### ### | | ??????????????# [ != T" | | ??????????????# = %R""&R ^ | | ??????????????# g@[ | | ??????????????# % ! ] u ############+#### | | ??????????????# ##?????# # | | ??????????????# # ##?##### """ # | | ??????????????# # ##?# + """ # | | ??????????????# ## #??# ### """ # | | ??????????????############### #??# #?# "" # | | ????????????????????????????# #??# #?# "" # | | ????????????????????????????# #??# #?#! # | | ????????????????????????????# #??# #?# # | | ????????????????????????????# ####+############# | | ????????????????????????????# # #???????? | | ????????????????????????????# # #???????? | | ????????????????????????????# # #???????? | | ????????????????????????????# + ######### | | ?????????????????????#??????# # # | | ????????????????????? ????# # # | | ????????????????????? ???# # # | | ?##??????????????????"""""??# # # | | # #?????????????????? ?# # # | | #??????????????????"""""" # # +???????? | | #??????????????? + # #???????? | | ?????????????????????""""" # # #???????? | | ????????????????????? ?###!# #???????? | | ????????????????????""""""????# # #???????? | +----------------------------------------------------+ Best States ------------- Heat Dissipation 70 Coolant Potential 65 Energy Generation 18 Energy Capacity 290 Matter Stores 300 Matter Capacity 300 Sight Range 16 Terrain Scan Range 16 Terrain Scan Density 10 Armor Coverage 225 Resistance: KI 30 Utility Shielding 15 Weapon Shielding 66 Evasion (%) 50 Targeting Accuracy 8 Recoil Reduction 2 Item Schematics ----------------- None Robot Schematics ------------------ None Fabricated ------------ Nothing Repaired ---------- Kinecellerator | 34% | -6/Factory Studied --------- None Alien Tech Used ----------------- None Achievements -------------- Deductive Reasoning SUBSUB Challenges ------------ None Game ------ Seed ResetSingularityDoomcannon Manual? 0 Play Time 01:10:55 Cumulative 338.0 hours Start 2025.10.29 @ 20:58:34 End 2025.10.29 @ 22:15:05 Sessions 1 Manual Loads 0 Difficulty Rogue Special Mode None Game No. 294 Rogue 294 Adventurer 0 Explorer 0 Win Type - Total 2 Types 1/1/0/0/0/0/0/0/0/0 Lore% 81 Gallery% 80 Achievement% 52 Wizard Run 0 Options --------- Layout 1 ASCII 0 Keyboard 0 Movement Numpad Keybinds 0 Fullscreen 1 Font 24/Smallcaps Map View 50x35 Zoom Use 0% Tactical HUD 1 Map Filters NONE Filters NONE Steam 1 RUN: f7330506-974e-4800-ab30-3fdd696c121a